[Event "IV Estrellas 2022"]
[Site "La Palma"]
[Date "2022.08.09"]
[Round "6.4"]
[White "Geske, Julian"]
[Black "Herrera Reyes, Jose Antonio"]
[Result "1/2-1/2"]
[ECO "B40"]
[WhiteElo "2386"]
[BlackElo "2345"]
[Annotator "TA"]
[PlyCount "110"]
[EventDate "2022.08.06"]
[EventType "swiss"]
[EventCountry "ESP"]
[SourceTitle "playchess.com"]
[Source "ChessBase"]
[SourceQuality "1"]
[TimeControl "5400+30"]

{[%evp 9,110,0,26,29,52,45,45,46,42,35,57,57,163,121,219,225,388,382,374,156,141,140,147,5,8,15,77,-84,-75,-86,-75,-95,-89,-92,32,-329,-342,-297,-345,-345,-289,-412,-382,-404,-411,-400,-379,-708,-704,-694,-697,-667,-64,-571,-450,-397,-75,-60,-97,-71,-60,-72,0,0,0,0,0,0,0,0,3,5,6,6,6,6,9,6,22,22,22,0,0,0,0,0,0,0,0,0,0,0,0,0,0,0,0,0,0,0,0,0,0]} 1. e4 {[%emt 0:00:02]} c5 {[%emt 0:00:36]} 2. Nf3 {[%emt 0:00:04]} e6 {[%emt 0:00:09]} 3. g3 {[%emt 0:00:08]} b6 {[%emt 0:00:22]} 4. Bg2 {[%emt 0:00:07]} Bb7 {[%emt 0:00:03]} 5. Qe2 {[%emt 0:00:15]} Qc7 {[%emt 0:01:13]} 6. O-O {[%emt 0:00:17] B40: Sicilian: 2...e6, Unusual lines.} d6 {[%emt 0:01:02]} 7. d4 {[%emt 0:00:09]} cxd4 $1 {[%emt 0:00:08]} 8. Nxd4 {[%emt 0:00:03] White is slightly better.} a6 {[%emt 0:00:38] [#]} 9. a4 $146 {[%emt 0:00:10]} ({Predecessor:} 9. c4 Be7 10. Be3 Nf6 11. Nd2 O-O 12. f4 Nc6 13. Nc2 Rfe8 14. Rac1 Nd7 15. b4 {½-½ (38) Gaponenko,I (2403)-Babiy,O (2350) Lvov 2015}) 9... Be7 {[%emt 0:03:15]} 10. Ra3 {[%emt 0:05:52]} h5 {[%emt 0:17:05]} (10... Nd7 $14) 11. Rc3 $18 {[%emt 0:07:03]} Qd7 {[%emt 0:02:59]} (11... Qd8 $16 {was called for.}) 12. Na3 {[%emt 0:01:11]} Qxa4 {[%emt 0:22:56]} (12... Nc6 {keeps fighting.}) 13. Nc4 {[%emt 0:06:15]} Nd7 {[%emt 0:00:39]} 14. Qe3 {[%emt 0:11:16]} (14. b3 $18 Qa2 15. Bb2) 14... b5 $16 {[%emt 0:04:36]} 15. b3 {[%emt 0:04:31][%mdl 1024] White has strong compensation. White is more active.} Qa2 {[%emt 0:00:54] [#]} 16. Na3 {[%emt 0:06:45]} ({White has to play} 16. Nb6 $1 $16 {[%cal Rb6a8][%mdl 512]} Nxb6 17. Rc7) 16... Ngf6 $1 $11 {[%emt 0:05:53]} 17. b4 $1 {[%emt 0:10:45]} (17. Rc7 Rb8 18. Qd2 h4 $17) 17... d5 {[%emt 0:07:33]} (17... O-O $11) 18. e5 $2 {[%emt 0:07:04]} (18. Rc7 $16 {stays on course.} Rb8 19. Qc3) 18... Ng4 $36 {[%emt 0:00:30][%mdl 2048] Keeping White busy.} 19. Qe2 {[%emt 0:00:11]} Bxb4 {[%emt 0:02:56]} 20. Rb3 {[%emt 0:00:17]} Bc5 {[%emt 0:00:23]} 21. Bb2 {[%emt 0:02:47]} Rc8 {[%emt 0:04:03]} (21... Ndxe5 22. h3 Bxa3 23. Bxa3 $16) (21... O-O $17 {aiming for ...Rfc8.} 22. Qd2 (22. Ra1 $2 Qxb2 23. Rxb2 Bxd4 $19) 22... Bxa3 23. Bxa3 Ngxe5 $1 24. Bxf8 Rxf8) 22. Ra1 $2 {[%emt 0:03:01][%mdl 8192] [#]} (22. Qd2 $14 {keeps the upper hand.} b4 23. Rxb4 (23. Ra1 Qxb3 24. cxb3 bxa3 $14) 23... Bxb4 24. Qxb4) 22... Qxb2 $3 $19 {[%emt 0:00:09][%mdl 512]} 23. Rxb2 {[%emt 0:00:04]} Bxd4 {[%emt 0:00:03]} 24. Rab1 {[%emt 0:02:19]} Bxf2+ {[%emt 0:00:18]} 25. Kf1 {[%emt 0:03:52]} (25. Kh1 $142) 25... Bd4 {[%emt 0:03:17]} 26. Rb3 {[%emt 0:00:29]} Nxh2+ {[%emt 0:01:27]} 27. Ke1 {[%emt 0:00:05]} Nc5 {[%emt 0:03:02]} 28. Rxb5 $2 {[%emt 0:02:33]} (28. c4) 28... axb5 {[%emt 0:03:05]} 29. Nxb5 {[%emt 0:00:51]} Ba6 {[%emt 0:00:05]} 30. Nd6+ {[%emt 0:02:07]} Ke7 $2 {[%emt 0:00:02]} ({Black should play} 30... Kd7 $19 31. Qd2 Nd3+ $1 {[%mdl 512]} 32. cxd3 Bc3 33. Nxc8 Rxc8) 31. Qd2 {[%emt 0:01:06][%mdl 8192] [#] Inhibits Bc3.} (31. Nxc8+ $15 Bxc8 32. Qd2 Bxe5 33. Qg5+ Bf6 34. Qe3) 31... Bxe5 $1 {[%emt 0:09:48]} 32. Nxc8+ {[%emt 0:00:09]} Bxc8 $2 {[%emt 0:00:08] A strong pair of Bishops.} (32... Rxc8 $19 {has better winning chances.} 33. Qg5+ Bf6 34. Qxh5 Na4 $1) 33. Qg5+ $17 {[%emt 0:01:24]} Bf6 {[%emt 0:00:45][%cal Be5f6,Bf6d4,Bd4c5][%mdl 32]} 34. Qe3 {[%emt 0:00:18][%csl LRc5,LRd5]} Nd7 {[%emt 0:00:25]} 35. Qa3+ $1 {[%emt 0:00:40] [#]} Ke8 {[%emt 0:00:42]} (35... Kd8 $1 $17 {And now ...Be5 would win.} 36. c4 Be5 37. cxd5 exd5 38. Bxd5 Rh6) 36. c4 $1 $11 {[%emt 0:01:30] The position is equal.} Bd4 {[%emt 0:04:07]} 37. cxd5 {[%emt 0:01:51]} Bc5 {[%emt 0:00:19]} 38. Qa8 {[%emt 0:00:32]} Ke7 {[%emt 0:00:06] White must now prevent ...exd5.} 39. dxe6 {[%emt 0:00:22]} fxe6 {[%emt 0:00:24]} 40. Bb7 {[%emt 0:00:42]} Ne5 {[%emt 0:03:27][%cal Oh8f8] Threatens to win with ...Rf8!} 41. Bxc8 {[%emt 0:00:45] Hoping for Ke2.} Nhf3+ {[%emt 0:00:01]} 42. Ke2 {[%emt 0:01:05]} Rd8 $1 {[%emt 0:00:01] ( -> ...Rd2+)} 43. Rd1 {[%emt 0:01:49] Prevents Rd2+. Really sharp!} Ng1+ {[%emt 0:00:42] [#]} 44. Rxg1 $1 {[%emt 0:00:06]} Bxg1 {[%emt 0:00:01]} 45. Qb8 {[%emt 0:01:22]} Kf6 {[%emt 0:00:51]} 46. Qc7 {[%emt 0:01:47]} Rd3 {[%emt 0:01:17]} 47. Bb7 {[%emt 0:01:23]} Be3 {[%emt 0:01:02]} 48. Be4 {[%emt 0:01:29]} Rd7 {[%emt 0:00:01]} 49. Qc8 {[%emt 0:00:28]} Bh6 {[%emt 0:00:01]} 50. Qf8+ {[%emt 0:00:51]} Nf7 {[%emt 0:00:01]} 51. Qc5 {[%emt 0:01:36]} g6 {[%emt 0:01:23]} 52. Qc3+ {[%emt 0:00:28]} Ne5 {[%emt 0:00:03]} 53. Bxg6 {[%emt 0:00:31][%mdl 64] Pin} Rd2+ {[%emt 0:01:28]} 54. Ke1 {[%emt 0:00:01]} Rd5 {[%emt 0:00:08] ...Bd2+ is the strong threat.} 55. Bxh5 {[%emt 0:01:05]} Bd2+ {[%emt 0:00:52] White used his chance.  Weighted Error Value: White=0.46/Black=0.46} 1/2-1/2

[Event "IV Estrellas 2022"]
[Site "La Palma"]
[Date "2022.08.09"]
[Round "6.5"]
[White "Martinez Duany, Lelys Stanley"]
[Black "Cubas Cabrera, Angel Luis"]
[Result "1-0"]
[ECO "A50"]
[WhiteElo "2497"]
[BlackElo "2207"]
[Annotator "TA"]
[PlyCount "69"]
[EventDate "2022.08.06"]
[EventType "swiss"]
[EventCountry "ESP"]
[SourceTitle "playchess.com"]
[Source "ChessBase"]
[SourceQuality "1"]
[TimeControl "5400+30"]

{[%evp 9,69,71,97,99,106,102,141,137,141,139,138,143,145,139,139,138,152,148,139,122,145,134,123,114,122,125,135,131,131,108,142,129,154,150,149,158,158,156,151,118,120,114,177,183,186,168,172,137,138,138,184,203,208,206,359,354,338,311,397,366,369,343]} 1. Nf3 {[%emt 0:00:21]} Nf6 {[%emt 0:00:09]} 2. c4 {[%emt 0:00:11]} e6 {[%emt 0:00:14]} 3. Nc3 {[%emt 0:00:49]} b6 {[%emt 0:01:14]} 4. e4 {[%emt 0:00:21]} d6 {[%emt 0:01:20]} 5. d4 {[%emt 0:00:08]} c5 {[%emt 0:04:26]} 6. dxc5 {[%emt 0:03:30] A50: Queen's Fianchetto Defence (1 d4 Nf6 2 c4 b6).} bxc5 {[%emt 0:06:07]} 7. e5 {[%emt 0:00:08]} Ng4 {[%emt 0:08:03]} 8. exd6 {[%emt 0:01:19] [#] White is clearly better.} Qxd6 $146 {[%emt 0:00:10]} ({Predecessor:} 8... Bxd6 9. Nb5 Bc7 10. Qxd8+ Kxd8 11. Nxc7 Kxc7 12. h3 Nf6 13. Ne5 Rf8 14. Bf4 Kb6 {1-0 (29) Galeev,S (2280)-Macanga,B (2250) Djakovo 1994}) 9. Qxd6 {[%emt 0:00:36]} Bxd6 {[%emt 0:00:05]} 10. Nb5 {[%emt 0:00:08]} Ke7 {[%emt 0:00:29]} 11. Nxd6 {[%emt 0:03:25]} Kxd6 {[%emt 0:00:05]} 12. Ng5 {[%emt 0:00:36][%cal Bf3g5,Bg5e4,Be4d6,Bd6b5][%mdl 32]} Ke7 {[%emt 0:02:34]} 13. Be2 {[%emt 0:00:17]} Ne5 {[%emt 0:00:26]} 14. Be3 {[%emt 0:00:56]} Na6 {[%emt 0:01:41]} 15. f4 {[%emt 0:02:16]} Nd7 {[%emt 0:01:55]} 16. O-O-O {[%emt 0:00:12]} h6 {[%emt 0:02:37]} 17. Ne4 {[%emt 0:03:30] White is much more active. The black rooks are badly placed.} Bb7 {[%emt 0:02:05]} 18. Nd6 {[%emt 0:00:12]} Bc6 {[%emt 0:00:06]} 19. Rd2 {[%emt 0:04:33]} Rhd8 {[%emt 0:18:18]} 20. Rhd1 {[%emt 0:00:15]} Nb6 {[%emt 0:14:16]} 21. g4 {[%emt 0:00:53]} Rd7 {[%emt 0:02:20]} 22. Nb5 {[%emt 0:02:07]} Rxd2 {[%emt 0:01:29]} 23. Rxd2 {[%emt 0:00:07]} ({But not} 23. Bxd2 $6 Bxb5 24. cxb5 Nb4 $14) 23... Nd7 {[%emt 0:01:18]} 24. Nd6 {[%emt 0:03:08]} Rd8 {[%emt 0:09:26]} 25. a3 {[%emt 0:01:37]} Nb6 {[%emt 0:03:48]} (25... Rb8 $16 26. f5 e5) 26. Nb5 $18 {[%emt 0:00:23]} Nc8 {[%emt 0:02:36]} 27. Rxd8 {[%emt 0:00:33]} Kxd8 {[%emt 0:00:02]} 28. Kc2 {[%emt 0:00:31]} Kd7 {[%emt 0:02:07]} 29. h4 {[%emt 0:01:06][%cal Bh2h4,Bh4h5][%mdl 32]} Be4+ {[%emt 0:00:47]} (29... g6 $16 30. f5 Be4+ 31. Kc3 exf5) 30. Kc3 {[%emt 0:00:36]} Kc6 {[%emt 0:00:42] [#]} 31. b4 $1 {[%emt 0:00:11]} cxb4+ $2 {[%emt 0:02:24]} (31... f6 {was worth a try.} 32. Kb3 Bg2) 32. axb4 {[%emt 0:00:05]} Kb7 {[%emt 0:00:04]} 33. h5 {[%emt 0:00:44]} Nc7 {[%emt 0:02:19]} 34. Nxc7 {[%emt 0:00:32]} Kxc7 {[%emt 0:00:03]} 35. Bc5 {[%emt 1:11:44] Weighted Error Value: White=0.05 (flawless) /Black=0.20 (precise)} 1-0

[Event "IV Estrellas 2022"]
[Site "La Palma"]
[Date "2022.08.09"]
[Round "6.6"]
[White "Martinez Reyes, Pedro Ramon"]
[Black "Amador Garcia, Ismael"]
[Result "1-0"]
[ECO "B90"]
[WhiteElo "2408"]
[BlackElo "2128"]
[Annotator "TA"]
[PlyCount "99"]
[EventDate "2022.08.06"]
[EventType "swiss"]
[EventCountry "ESP"]
[SourceTitle "playchess.com"]
[Source "ChessBase"]
[SourceQuality "1"]
[TimeControl "5400+30"]

{[%evp 13,99,12,17,-7,0,0,0,0,3,-12,0,-8,-6,-20,0,-13,0,-18,-13,-26,-18,-20,0,-9,0,-25,0,-29,-17,-2,-6,-20,-6,-19,0,0,0,-24,0,0,9,8,0,-50,-8,-6,-2,-18,35,40,47,47,48,25,58,64,62,45,75,55,293,158,158,143,175,174,172,160,161,164,154,170,198,197,287,275,741,741,703,692,970,854,1117,904,29972,29972,29982,29974]} 1. e4 {[%emt 0:10:12]} c5 {[%emt 0:00:07]} 2. Nf3 {[%emt 0:00:06]} d6 {[%emt 0:00:01]} 3. d4 {[%emt 0:00:25]} cxd4 {[%emt 0:00:03]} 4. Nxd4 {[%emt 0:00:04]} Nf6 {[%emt 0:00:04]} 5. Nc3 {[%emt 0:00:05]} a6 {[%emt 0:00:03]} 6. Be3 {[%emt 0:00:35]} e5 {[%emt 0:00:04]} 7. Nf3 {[%emt 0:00:09]} Be7 {[%emt 0:00:06]} 8. h3 {[%emt 0:00:14] B90: Sicilian Najdorf: Unusual White 6th moves, 6 Be3 Ng4 and 6 Be3 e5.} Qc7 {[%emt 0:01:07] Recently 8...Be6 got a lot of attention.} 9. a4 {[%emt 0:04:35]} O-O {[%emt 0:02:52]} 10. Be2 {[%emt 0:02:31] The position is equal.} Nbd7 {[%emt 0:03:02]} 11. O-O {[%emt 0:04:35]} Nc5 {[%emt 0:09:26]} 12. Nd2 {[%emt 0:12:01]} Be6 {[%emt 0:00:51]} 13. Bg5 {[%emt 0:07:23]} Ncd7 {[%emt 0:04:11] [#]} 14. Re1 $146 {[%emt 0:05:31]} ({Predecessor:} 14. a5 Rfc8 15. Re1 h6 16. Bxf6 Nxf6 17. Nf1 b5 18. axb6 Qxb6 19. Na4 Qc6 20. Bd3 {0-1 (29) Hadj Kholti,Y (1871)-Livaic,L (2507) Chess.com INT 2020}) 14... h6 {[%emt 0:07:22]} 15. Bxf6 {[%emt 0:00:18]} Nxf6 {[%emt 0:00:02]} 16. Bf3 {[%emt 0:00:15]} Qc5 {[%emt 0:01:09]} 17. Nb3 {[%emt 0:07:19]} Qc7 {[%emt 0:12:09]} 18. Nd2 {[%emt 0:08:48]} Qc5 {[%emt 0:00:16]} 19. Nb3 {[%emt 0:02:24]} Qc7 {[%emt 0:00:22]} 20. a5 {[%emt 0:02:45]} b5 {[%emt 0:03:40]} 21. axb6 {[%emt 0:00:20]} Qxb6 {[%emt 0:00:02]} 22. Be2 {[%emt 0:04:05]} Rfc8 {[%emt 0:01:32][%cal Oc8c3] White should prevent ...Rxc3!} 23. Qd3 {[%emt 0:01:12][%cal Ra1a6]} Bc4 {[%emt 0:03:18]} 24. Qd1 {[%emt 0:02:42]} Be6 {[%emt 0:00:35][%cal Oc8c3]} 25. Qd3 {[%emt 0:00:13][%cal Ra1a6]} Bc4 {[%emt 0:00:09]} 26. Qd2 {[%emt 0:07:08]} Bxb3 {[%emt 0:08:58]} 27. cxb3 {[%emt 0:00:01]} Qxb3 {[%emt 0:00:02]} 28. Rxa6 {[%emt 0:00:19]} (28. Bxa6 $11 Rcb8 29. Reb1) 28... Rxa6 {[%emt 0:00:53]} (28... Rab8 $5 {[%cal Rb3b2]}) 29. Bxa6 {[%emt 0:00:04]} Rb8 {[%emt 0:00:23]} 30. Qd3 {[%emt 0:01:54]} Nd7 {[%emt 0:07:05]} (30... Qxb2 $2 31. Rb1 $18) ({Better is} 30... Rb4 $11) 31. Bc4 $14 {[%emt 0:05:22]} Qb7 {[%emt 0:02:04]} 32. Qf3 {[%emt 0:01:40]} Bf6 {[%emt 0:02:03]} 33. b3 {[%emt 0:01:14]} Nc5 {[%emt 0:01:35]} 34. Nd5 {[%emt 0:04:04]} Bg5 {[%emt 0:01:35][%cal Rc5b3]} 35. Qg4 {[%emt 0:00:43] White is more active.} Ne6 {[%emt 0:01:44]} 36. h4 {[%emt 0:00:09]} Bf4 {[%emt 0:06:26] Black cannot hold the game after this.} (36... Bd8 $14) 37. Nxf4 {[%emt 0:02:28]} (37. Rd1 $18) 37... Nxf4 $16 {[%emt 0:01:07] [#]} 38. g3 $1 {[%emt 0:00:01]} d5 {[%emt 0:01:41]} 39. exd5 {[%emt 0:00:21]} ({And not} 39. gxf4 dxc4 40. bxc4 Qc7 $11) 39... Nxd5 {[%emt 0:00:14]} 40. Rxe5 {[%emt 0:03:06]} Nf6 {[%emt 0:02:09]} 41. Qe2 {[%emt 0:00:01]} Ra8 {[%emt 0:00:18] [#] aiming for ...Ra1+.} 42. Qe1 {[%emt 0:00:04] Against Ra1} Ra7 {[%emt 0:00:37]} 43. Ra5 {[%emt 0:01:21]} Kh7 {[%emt 0:03:12]} (43... Rxa5 $142 44. Qxa5 Qe4 45. Qd8+ (45. Qc7 Qb1+ 46. Bf1 Qxb3 $16) 45... Qe8) 44. b4 $18 {[%emt 0:01:02][%cal Bb3b4,Bb4a5,Ba5a6][%mdl 32]} g6 $2 {[%emt 0:01:03]} (44... Qe7 45. Qxe7 Rxe7) 45. Qa1 {[%emt 0:01:07][%csl LRa7,LRf6]} Rxa5 {[%emt 0:00:10]} 46. bxa5 {[%emt 0:00:04]} ({Weaker is} 46. Qxa5 Qe4 $18) 46... Ng4 {[%emt 0:00:11]} 47. Qd4 {[%emt 0:00:20]} h5 {[%emt 0:01:14]} 48. a6 {[%emt 0:00:10]} Qb1+ {[%emt 0:00:09]} 49. Kg2 {[%emt 0:00:07]} Qf5 {[%emt 0:00:20]} 50. Qf4 {[%emt 0:00:44] Weighted Error Value: White=0.12 (very precise) /Black=0.43} 1-0

[Event "IV Estrellas 2022"]
[Site "La Palma"]
[Date "2022.08.09"]
[Round "6.7"]
[White "Miranda Herrera, Miguel"]
[Black "Roeder, Matthias"]
[Result "0-1"]
[ECO "B22"]
[WhiteElo "1904"]
[BlackElo "2357"]
[Annotator "TA"]
[PlyCount "102"]
[EventDate "2022.08.06"]
[EventType "swiss"]
[EventCountry "ESP"]
[SourceTitle "playchess.com"]
[Source "ChessBase"]
[SourceQuality "1"]
[TimeControl "5400+30"]

{[%evp 15,102,0,19,0,7,0,0,-46,-56,-51,-56,-48,-55,-68,-72,-121,-115,-129,-133,-131,-130,-195,-212,-215,-227,-494,-501,-494,-251,-251,-158,-160,-156,-154,-158,-150,-154,-157,-158,-161,-158,-154,-160,-159,-155,-171,-164,-169,-164,-194,-194,-194,-194,-194,-192,-189,-169,-209,-202,-198,-190,-225,-227,-257,-280,-294,-255,-227,-223,-290,-209,-739,-697,-860,-867,-841,-841,-816,-820,-811,-776,-870,-1249,-1626,-1184,-1434,-1359,-1105,-537]} 1. e4 {[%emt 0:00:03]} c5 {[%emt 0:00:08]} 2. c3 {[%emt 0:00:24]} Nf6 {[%emt 0:00:11][%cal Bg8f6,Bf6d5,Bd5b6][%mdl 32]} 3. e5 {[%emt 0:00:05]} Nd5 {[%emt 0:00:08]} 4. Nf3 {[%emt 0:00:03]} d6 {[%emt 0:01:06]} 5. d4 {[%emt 0:00:06]} cxd4 {[%emt 0:00:43]} 6. cxd4 {[%emt 0:00:06]} Nc6 {[%emt 0:01:00]} 7. Bc4 {[%emt 0:00:06]} Nb6 {[%emt 0:00:58]} 8. Bb5 {[%emt 0:00:05]} Bd7 {[%emt 0:00:10]} 9. exd6 {[%emt 0:04:12] B22: Sicilian: 2 c3.} e6 {[%emt 0:00:25]} 10. Nc3 {[%emt 0:10:07]} Bxd6 {[%emt 0:03:11]} 11. d5 {[%emt 0:00:06]} (11. O-O $11) 11... Nxd5 {[%emt 0:02:41]} 12. Nxd5 {[%emt 0:00:23]} exd5 {[%emt 0:00:07]} 13. Qxd5 {[%emt 0:06:30]} Bb4+ {[%emt 0:07:02]} 14. Bd2 {[%emt 0:00:07] And now Bxb4 would win.} Qe7+ {[%emt 0:01:27] [#]} 15. Be2 $146 {[%emt 0:01:15]} (15. Kf1 $142 Bxd2 16. Qxd2) ({Predecessor:} 15. Kf1 Bxd2 16. Qxd2 O-O 17. Rd1 Rad8 18. Qd6 Qxd6 19. Rxd6 Bg4 20. Rd3 a6 21. Bc4 {½-½ (30) Roeber,J (1991)-Schoeller,W (1975) Mittelfranken 2015}) 15... O-O-O $1 $17 {[%emt 0:05:50]} 16. Bxb4 {[%emt 0:03:04]} Qxb4+ {[%emt 0:03:31]} 17. Qd2 {[%emt 0:03:45]} Rhe8 {[%emt 0:05:49]} 18. Qxb4 {[%emt 0:00:34]} (18. Kf1 $17 {might work better.}) 18... Nxb4 $19 {[%emt 0:00:12]} 19. Kf1 {[%emt 0:00:04] [#]} Nc2 $1 {[%emt 0:10:10]} 20. Rc1 {[%emt 0:06:16] [#]} (20. Rd1) 20... Rxe2 $1 {[%emt 0:00:05][%mdl 512]} 21. Nd4 {[%emt 0:00:04] [#]} Re1+ {[%emt 0:00:08]} 22. Rxe1 {[%emt 0:00:06]} Nxe1 {[%emt 0:00:04]} 23. Kxe1 {[%emt 0:00:10][%mdl 4096] Endgame KRB-KRN} Ba4 {[%emt 0:00:15]} 24. Nb3 {[%emt 0:00:47]} Bxb3 {[%emt 0:00:06]} 25. axb3 $17 {[%emt 0:00:07] KR-KR} Rd3 {[%emt 0:00:06]} 26. Ke2 {[%emt 0:05:09]} Rxb3 {[%emt 0:00:06] Black is more active.} 27. Rb1 {[%emt 0:00:03]} Kd7 {[%emt 0:04:08]} 28. Kd2 {[%emt 0:00:52]} Rb4 {[%emt 0:00:25]} 29. Kc3 {[%emt 0:00:23]} Rf4 {[%emt 0:00:05]} 30. Rd1+ {[%emt 0:00:53]} Kc6 {[%emt 0:00:15]} 31. f3 {[%emt 0:00:25]} a5 {[%emt 0:00:18]} 32. Rd8 {[%emt 0:04:09]} h5 {[%emt 0:01:05]} 33. Rc8+ {[%emt 0:02:38]} Kb6 {[%emt 0:01:41]} 34. Re8 {[%emt 0:01:36]} h4 {[%emt 0:00:12][%cal Oh4h3]} 35. Re3 {[%emt 0:00:10]} g5 {[%emt 0:02:07]} 36. g3 {[%emt 0:05:15]} hxg3 {[%emt 0:01:27]} 37. hxg3 {[%emt 0:00:30]} Rf5 {[%emt 0:00:08]} 38. Kd4 {[%emt 0:04:28]} Kc6 {[%emt 0:01:12]} 39. Ke4 {[%emt 0:05:38]} Rb5 {[%emt 0:07:21]} 40. Rc3+ {[%emt 0:02:06]} Rc5 {[%emt 0:02:53] ...Rxc3 is the strong threat.} 41. Ra3 {[%emt 0:02:10]} b6 {[%emt 0:01:37]} 42. Re3 {[%emt 0:04:04]} Kd6 {[%emt 0:04:03] aiming for ...Re5+.} 43. f4 {[%emt 0:02:04] Against Re5+} (43. Rd3+ Kc6 44. Rd2) 43... f5+ $19 {[%emt 0:00:41] Black is clearly winning.} 44. Kd4 {[%emt 0:00:17]} gxf4 {[%emt 0:00:28]} 45. gxf4 {[%emt 0:00:05]} Rb5 {[%emt 0:00:08]} 46. Kc3 {[%emt 0:06:19]} Rb4 {[%emt 0:00:19]} 47. Rh3 {[%emt 0:00:03]} Rxf4 {[%emt 0:01:13]} 48. Rh6+ {[%emt 0:00:06]} Kc5 {[%emt 0:00:08]} 49. Rf6 {[%emt 0:00:04]} Rf3+ {[%emt 0:00:23]} 50. Kc2 {[%emt 0:00:28]} b5 {[%emt 0:00:31] Strongly threatening ...Kb4.} 51. Rf8 {[%emt 0:00:05]} a4 {[%emt 0:00:39] Weighted Error Value: White=0.66/Black=0.20 (precise)} (51... Kb4 $142 52. Re8 Rf2+ 53. Kb1 a4) 0-1

[Event "IV Estrellas 2022"]
[Site "La Palma"]
[Date "2022.08.09"]
[Round "6.8"]
[White "Garcia Blanco, Omar"]
[Black "Marrero Rodriguez, Jorge"]
[Result "1-0"]
[ECO "D02"]
[WhiteElo "2352"]
[BlackElo "1941"]
[Annotator "TA"]
[PlyCount "61"]
[EventDate "2022.08.06"]
[EventType "swiss"]
[EventCountry "ESP"]
[SourceTitle "playchess.com"]
[Source "ChessBase"]
[SourceQuality "1"]
[TimeControl "5400+30"]

{[%evp 9,61,38,47,25,62,28,10,18,46,49,60,50,46,18,28,10,10,27,26,0,0,-12,27,0,9,12,128,108,118,96,131,156,154,147,120,112,124,132,268,281,345,354,338,348,618,531,828,782,1135,865,1491,1293,29993,29993]} 1. Nf3 {[%emt 0:01:43]} d5 {[%emt 0:00:34]} 2. g3 {[%emt 0:00:19]} Nd7 {[%emt 0:01:33]} 3. d4 {[%emt 0:00:16]} Nb6 {[%emt 0:00:07]} 4. Bg2 {[%emt 0:01:49]} Nf6 {[%emt 0:01:57]} 5. O-O {[%emt 0:00:43]} Bf5 {[%emt 0:01:56]} 6. Ne5 {[%emt 0:01:24] D02: 1 d4 d5 2 Nf3 sidelines, including 2...Nf6 3 g3 and 2...Nf6 3 Bf4.} e6 {[%emt 0:03:50]} 7. c4 {[%emt 0:01:31]} c6 {[%emt 0:00:50]} 8. Nc3 {[%emt 0:01:50] [#] The position is equal.} Bb4 $146 {[%emt 0:02:27]} ({Predecessor:} 8... Be7 9. Qb3 dxc4 10. Nxc4 Nxc4 11. Qxc4 O-O 12. Rd1 Bg6 13. a4 a5 14. Qb3 Nd5 15. Nxd5 cxd5 16. Qxb7 {1-0 (67) Mikhailov,V (2428)-Sjugirov,S (2696) Chess.com INT 2022}) 9. Qb3 {[%emt 0:01:30]} Bxc3 {[%emt 0:03:07]} 10. bxc3 {[%emt 0:00:21]} Nfd7 {[%emt 0:05:46]} 11. Nxd7 {[%emt 0:11:30]} (11. Ba3 {seems wilder.} Nxe5 12. cxd5 cxd5 13. dxe5 Nc4 14. Rfd1) 11... Qxd7 {[%emt 0:00:12]} 12. e4 {[%emt 0:00:39]} Bxe4 {[%emt 0:02:27]} 13. Bxe4 {[%emt 0:00:08]} dxe4 {[%emt 0:00:07]} 14. Ba3 {[%emt 0:01:47]} h5 {[%emt 0:04:42]} 15. Rfe1 {[%emt 0:04:23]} h4 {[%emt 0:03:46]} (15... f5 $5 {[%cal Rh5h4]}) 16. Rxe4 {[%emt 0:00:47]} hxg3 {[%emt 0:01:03]} 17. fxg3 {[%emt 0:00:07]} c5 {[%emt 0:03:19]} (17... O-O-O $11 {remains equal.}) 18. Bxc5 $16 {[%emt 0:06:25]} Qc6 {[%emt 0:00:48]} 19. Re2 {[%emt 0:09:40]} Nd7 {[%emt 0:00:36]} 20. Ba3 {[%emt 0:01:42] White is more active.} O-O-O {[%emt 0:04:41]} 21. Rf1 {[%emt 0:04:35] [#] And now Be7 would win.} f6 {[%emt 0:05:27]} 22. c5 $36 {[%emt 0:06:57][%mdl 2048] White is really pushing.} e5 {[%emt 0:01:14]} 23. d5 {[%emt 0:00:15]} Qa6 {[%emt 0:00:10] Loses the game.} (23... Qc7 $16) 24. c4 {[%emt 0:00:35]} Qa5 {[%emt 0:00:57]} 25. Bb4 {[%emt 0:00:29]} Qc7 {[%emt 0:00:09]} 26. Qa3 {[%emt 0:00:10]} Nb8 $2 {[%emt 0:02:45]} (26... a5) 27. Rb2 {[%emt 0:06:49] [#] Threatens to win with Ba5.} b6 {[%emt 0:03:45] Prevents Ba5.} 28. Rfb1 {[%emt 0:06:29]} Nd7 {[%emt 0:01:19]} 29. Qa6+ {[%emt 0:00:19]} Kb8 {[%emt 0:00:13]} 30. c6 {[%emt 0:00:06][%cal Ob4d6] Intending Bd6! and mate.} Nf8 {[%emt 0:00:13]} 31. Bxf8 {[%emt 0:00:52] Weighted Error Value: White=0.16 (very precise) /Black=0.71} 1-0